[Event "5th Sharjah Masters 2022"]
[Site "Sharjah"]
[Date "2022.05.21"]
[Round "1.10"]
[White "Van Foreest, Lucas"]
[Black "Niemann, Hans Moke"]
[Result "1-0"]
[ECO "D35"]
[WhiteElo "2572"]
[BlackElo "2656"]
[Annotator "TA"]
[PlyCount "63"]
[EventDate "2022.05.21"]
[EventType "swiss"]
[EventCountry "UAE"]
[SourceTitle "playchess.com"]
[Source "ChessBase"]
[SourceQuality "1"]
[TimeControl "5400+30"]

{[%evp 14,63,26,28,29,28,42,23,28,26,23,25,40,39,41,27,46,14,0,23,41,44,46,50,72,47,47,25,19,30,79,66,66,82,59,45,116,116,115,136,322,301,268,259,567,299,292,289,274,281,275,262]} 1. d4 {[%emt 0:00:30]} Nf6 {[%emt 0:00:40]} 2. c4 {[%emt 0:00:04]} e6 {[%emt 0:00:13]} 3. Nc3 {[%emt 0:00:32]} d5 {[%emt 0:00:32]} 4. cxd5 {[%emt 0:01:16]} exd5 {[%emt 0:00:15]} 5. Bg5 {[%emt 0:00:05]} c6 {[%emt 0:00:26]} 6. e3 {[%emt 0:00:07]} Be7 {[%emt 0:00:28]} 7. Bd3 {[%emt 0:00:25]} h6 {[%emt 0:00:34]} 8. Bf4 {[%emt 0:00:55]} Nbd7 {[%emt 0:03:16][%cal Bb8d7,Bd7f8,Bf8e6][%mdl 32] D35: Queen's Gambit Declined: Exchange Variation.} 9. h3 {[%emt 0:00:05]} Nf8 {[%emt 0:00:26]} 10. Nf3 {[%emt 0:00:02]} Ne6 {[%emt 0:00:09] White has an edge.} 11. Bh2 {[%emt 0:00:07]} O-O {[%emt 0:01:41]} 12. O-O {[%emt 0:00:04]} b6 {[%emt 0:02:42] [#]} 13. Rc1 $146 {[%emt 0:05:54]} ({Predecessor:} 13. Ne5 Bb7 14. Qa4 Bd6 15. Nxc6 Bxh2+ 16. Kxh2 Qc7+ 17. Ne5 Nc5 18. Qd1 Nfe4 19. Kg1 Nxc3 20. bxc3 Nxd3 21. Qxd3 {1-0 (29) Ovsejevitsch,S (2581)-Wille,T (2169) Werther 2008}) 13... Bb7 {[%emt 0:00:57]} 14. Qe2 {[%emt 0:02:10]} c5 {[%emt 0:05:28]} 15. dxc5 {[%emt 0:00:16]} bxc5 {[%emt 0:01:08]} 16. Rfd1 {[%emt 0:00:32]} Qb6 {[%emt 0:15:27]} 17. b3 {[%emt 0:00:38][%cal Bb2b3,Bb3a4,Ba4a5][%mdl 32]} Rfe8 {[%emt 0:13:38]} 18. Be5 {[%emt 0:02:09]} a6 {[%emt 0:03:24]} 19. Bf5 {[%emt 0:01:53]} Bc6 {[%emt 0:10:00]} 20. Na4 {[%emt 0:20:05]} Bxa4 {[%emt 0:00:28]} 21. bxa4 {[%emt 0:00:05]} Red8 {[%emt 0:05:41]} (21... Qc6 $11) 22. Rb1 $16 {[%emt 0:00:48]} Qc6 {[%emt 0:00:50]} 23. a5 {[%emt 0:00:05]} Nd7 {[%emt 0:00:29] Against Rb6} 24. Bg3 {[%emt 0:01:19]} Rac8 {[%emt 0:11:26] [#]} ({Black should try} 24... g6 $1 $14 25. Bd3 c4) 25. Ne5 $1 $36 {[%emt 0:02:22][%mdl 2048] White is on the roll. White is much more active.} Nxe5 {[%emt 0:02:47]} 26. Bxe5 {[%emt 0:01:01] And now Qg4 would win.} d4 $2 {[%emt 0:04:37] This move loses the game for Black.} (26... Bd6 $16) 27. exd4 {[%emt 0:03:19]} cxd4 {[%emt 0:00:48]} 28. Rb6 {[%emt 0:01:03]} Qe8 $2 {[%emt 0:06:49]} (28... Qc5 {is a better chance.} 29. Rxe6 fxe6 30. Bxe6+ Kh8 31. Bxc8 (31. Qxa6 Rc6 $17) 31... d3) 29. Rxe6 {[%emt 0:03:40]} fxe6 {[%emt 0:00:11] White has a decisive advantage.} 30. Bxe6+ {[%emt 0:00:07][%cal Bf5e6,Be6c8,Bc8a6][%mdl 32]} Kh8 {[%emt 0:00:06]} 31. Bxc8 {[%emt 0:00:42] A strong pair of Bishops.} ({Avoid the trap} 31. Qxa6 $2 Rc6 32. Qe2 Bf6 33. Bxf6 Rxe6 34. Bxg7+ (34. Qxe6 $2 Qxe6 35. Bxd8 Qe2 $19) 34... Kxg7 35. Qg4+ Rg6 $19) ({Worse is} 31. Bxd4 Bf6 32. Bxf6 Rxd1+ 33. Qxd1 Qxe6 $15) 31... Bf6 {[%emt 0:00:35] [#]} 32. Bxa6 $1 {[%emt 0:01:20] Weighted Error Value: White=0.18 (very precise) /Black=0.35} 1-0

[Event "5th Sharjah Masters 2022"]
[Site "Sharjah"]
[Date "2022.05.21"]
[Round "1.11"]
[White "Martirosyan, Haik M."]
[Black "Mastrovasilis, Athanasios"]
[Result "1-0"]
[ECO "D35"]
[WhiteElo "2652"]
[BlackElo "2540"]
[Annotator "TA"]
[PlyCount "101"]
[EventDate "2022.05.21"]
[EventType "swiss"]
[EventCountry "UAE"]
[SourceTitle "playchess.com"]
[Source "ChessBase"]
[SourceQuality "1"]
[TimeControl "5400+30"]

{[%evp 10,101,19,27,27,19,34,25,15,24,20,16,18,15,20,12,9,0,18,0,8,8,0,-12,-9,-13,-6,-16,-8,-4,0,0,0,-24,-12,-7,0,0,3,0,7,7,2,-12,-12,-12,0,0,2,0,0,-31,14,-12,7,-25,14,0,0,-11,4,0,0,0,0,0,133,127,127,120,272,270,256,269,264,260,505,490,478,445,505,495,488,444,441,441,442,427,408,422,413,410,745,724]} 1. d4 {[%emt 0:00:06]} d5 {[%emt 0:00:13]} 2. c4 {[%emt 0:00:11]} e6 {[%emt 0:00:14]} 3. Nf3 {[%emt 0:00:24]} Nf6 {[%emt 0:00:28]} 4. Nc3 {[%emt 0:00:15]} Nbd7 {[%emt 0:00:48]} 5. cxd5 {[%emt 0:01:55]} exd5 {[%emt 0:00:17]} 6. Bg5 {[%emt 0:00:13]} h6 {[%emt 0:00:46] D35: Queen's Gambit Declined: Exchange Variation.} 7. Bh4 {[%emt 0:01:14]} Be7 {[%emt 0:00:46]} 8. e3 {[%emt 0:00:29]} c6 {[%emt 0:00:43] White has an edge.} 9. Qc2 {[%emt 0:00:54]} Nh5 {[%emt 0:01:18]} 10. Bxe7 {[%emt 0:00:37]} Qxe7 {[%emt 0:00:05]} 11. O-O-O {[%emt 0:02:14]} Nb6 {[%emt 0:01:33]} 12. Bd3 {[%emt 0:01:41]} Nf6 {[%emt 0:01:57][%cal Bh5f6,Bf6e8,Be8d6][%mdl 32]} 13. h3 {[%emt 0:02:47]} Be6 {[%emt 0:02:23]} 14. Kb1 {[%emt 0:00:49]} O-O-O {[%emt 0:10:37]} 15. Rc1 {[%emt 0:03:13]} Kb8 {[%emt 0:01:04]} 16. Nd2 {[%emt 0:08:05][%cal Bf3d2,Bd2b3,Bb3c5][%mdl 32]} Ne8 {[%emt 0:08:02]} 17. Nb3 {[%emt 0:04:17]} Nd6 {[%emt 0:01:11]} 18. Nc5 {[%emt 0:00:23] [#]} Bc8 $146 {[%emt 0:02:32]} ({Predecessor:} 18... Qf6 19. Rhe1 h5 20. a4 {½-½ (20) Levin,E (2488)-Kim,A (2460) Peterhof 2008}) 19. Ka1 {[%emt 0:02:59]} Qg5 {[%emt 0:12:40]} 20. Rhg1 {[%emt 0:07:08]} Bf5 {[%emt 0:05:07]} 21. Nb1 {[%emt 0:04:51]} Bxd3 {[%emt 0:01:10]} 22. Nxd3 {[%emt 0:00:15]} Rhe8 {[%emt 0:11:37]} 23. Nd2 {[%emt 0:01:53]} Qf5 {[%emt 0:02:41]} 24. Nb3 {[%emt 0:03:59]} Nbc4 {[%emt 0:12:13][%cal Bb6c4,Bc4d6,Bd6e4][%mdl 32]} 25. Nbc5 {[%emt 0:11:49]} Ne4 {[%emt 0:02:28]} 26. Qe2 {[%emt 0:06:16]} Nxc5 {[%emt 0:04:00]} 27. Nxc5 {[%emt 0:00:22]} Nd6 {[%emt 0:01:21]} 28. Rc2 {[%emt 0:04:11]} Re7 {[%emt 0:00:39]} 29. Rgc1 {[%emt 0:01:33]} h5 {[%emt 0:05:12]} 30. a4 {[%emt 0:02:36]} Qg6 {[%emt 0:04:16]} 31. Qf1 {[%emt 0:02:30]} Ne4 {[%emt 0:02:08]} 32. Nd3 {[%emt 0:01:28]} Qd6 {[%emt 0:00:29]} 33. b4 {[%emt 0:01:49]} Rc8 {[%emt 0:01:16]} 34. Qe1 {[%emt 0:01:44]} f6 {[%emt 0:01:07]} 35. Ka2 {[%emt 0:01:31]} h4 {[%emt 0:00:44]} 36. Qe2 {[%emt 0:11:05]} g5 {[%emt 0:00:35]} 37. Qg4 {[%emt 0:01:42]} Qe6 {[%emt 0:00:57]} (37... Qc7 $11 {remains equal.}) 38. Qxe6 $16 {[%emt 0:00:46]} Rxe6 {[%emt 0:00:01] [#]} 39. b5 $1 {[%emt 0:00:10]} a5 $2 {[%emt 0:03:18] Prevents Nb4. A mistake that costs the game.} (39... Rd8 $16) 40. bxa6 $1 $18 {[%emt 0:00:29]} bxa6 {[%emt 0:00:33]} 41. Nb4 {[%emt 0:00:24][%csl LRa6,LRc6]} Kb7 {[%emt 0:00:49]} 42. Nxd5 {[%emt 0:00:42]} a5 $2 {[%emt 0:00:19]} (42... Rd6) 43. Rb2+ {[%emt 0:01:49]} Ka7 {[%emt 0:00:02]} 44. f3 {[%emt 0:00:55]} Nd6 {[%emt 0:00:32]} 45. Nb6 {[%emt 0:00:04]} ({Weaker is} 45. Rc5 Nb7 $18) 45... Rc7 {[%emt 0:00:36]} 46. e4 {[%emt 0:00:26] [#] d5 is the strong threat.} Nb7 {[%emt 0:00:58]} 47. d5 {[%emt 0:01:55]} Rd6 {[%emt 0:00:09]} 48. Nc4 {[%emt 0:00:16]} Rdd7 {[%emt 0:00:34]} 49. Na3 {[%emt 0:00:43]} Nd8 {[%emt 0:00:40]} 50. Rc5 {[%emt 0:00:24][%cal Rc5a5]} Ka6 {[%emt 0:00:44]} (50... Rb7 $142 51. Nc4 Rxb2+ 52. Kxb2 cxd5) 51. Nc4 {[%emt 0:00:20] Weighted Error Value: White=0.06 (flawless) /Black=0.22 (precise)} 1-0

[Event "5th Sharjah Masters 2022"]
[Site "Sharjah"]
[Date "2022.05.21"]
[Round "1.12"]
[White "Muradli, Mahammad"]
[Black "Moussard, Jules"]
[Result "1/2-1/2"]
[ECO "D12"]
[WhiteElo "2539"]
[BlackElo "2651"]
[Annotator "TA"]
[PlyCount "91"]
[EventDate "2022.05.21"]
[EventType "swiss"]
[EventCountry "UAE"]
[SourceTitle "playchess.com"]
[Source "ChessBase"]
[SourceQuality "1"]
[TimeControl "5400+30"]

{[%evp 13,91,29,35,23,31,0,0,0,0,0,0,-31,-31,-23,0,-31,-46,-42,-22,-68,-58,-66,-71,-81,-75,-76,-58,-73,-54,-71,-56,-65,-75,-70,-74,-87,0,0,0,0,0,-4,0,-15,-14,-16,0,0,0,0,-8,-170,-182,-190,-177,-173,-76,-83,-84,-70,-38,-43,-46,-46,-17,-30,0,0,0,-3,0,0,0,0,0,0,0,0,0,0]} 1. d4 {[%emt 0:00:22]} Nf6 {[%emt 0:02:04]} 2. c4 {[%emt 0:00:11]} c6 {[%emt 0:00:36]} 3. Nf3 {[%emt 0:00:40]} d5 {[%emt 0:00:08]} 4. e3 {[%emt 0:00:08]} Bf5 {[%emt 0:00:24]} 5. Nc3 {[%emt 0:00:45]} e6 {[%emt 0:00:18]} 6. Nh4 {[%emt 0:00:43]} Bg6 {[%emt 0:01:49]} 7. Nxg6 {[%emt 0:04:40]} hxg6 {[%emt 0:00:06]} 8. g3 {[%emt 0:00:25] D12: Slav Defence: 3 Nf3 Nf6 4 e3 Bf5.} Nbd7 {[%emt 0:00:22]} 9. Bg2 {[%emt 0:06:25]} dxc4 {[%emt 0:00:38]} 10. Qe2 {[%emt 0:00:30]} Nb6 {[%emt 0:00:38]} 11. O-O {[%emt 0:00:57]} Qc7 {[%emt 0:00:35]} 12. e4 {[%emt 0:05:52]} e5 {[%emt 0:00:31] Inhibits Bf4.} 13. Be3 {[%emt 0:00:42]} Nfd7 {[%emt 0:15:06] [#]} 14. Rfd1 $146 {[%emt 0:06:11]} ({Predecessor:} 14. Rad1 Be7 15. f4 exd4 16. Bxd4 Bc5 17. e5 Bxd4+ 18. Rxd4 Nc5 19. Rd6 Qe7 20. Qe3 {0-1 (37) Javakhishvili,L (2444)-Kadimova,I (2310) Kusadasi 2006}) 14... exd4 {[%emt 0:02:43]} 15. Bxd4 {[%emt 0:00:16]} O-O-O {[%emt 0:06:36]} 16. e5 {[%emt 0:29:06]} (16. Qf3 $11 {deserves consideration.}) 16... Re8 $15 {[%emt 0:16:43]} 17. f4 {[%emt 0:04:58]} g5 {[%emt 0:00:21]} 18. Qg4 {[%emt 0:18:05]} gxf4 {[%emt 0:01:05]} 19. gxf4 {[%emt 0:00:03]} Kb8 {[%emt 0:02:11]} 20. Ne4 {[%emt 0:01:18] Prevents f6.} Nd5 {[%emt 0:02:48]} 21. b3 $1 {[%emt 0:03:48]} cxb3 {[%emt 0:13:00]} 22. axb3 {[%emt 0:00:20]} a6 {[%emt 0:01:03]} 23. Ng5 {[%emt 0:00:47]} N7b6 {[%emt 0:02:34]} 24. h3 {[%emt 0:15:18]} f6 {[%emt 0:13:57]} (24... Bb4 $17) 25. Ne6 $11 {[%emt 0:00:00]} Rxe6 {[%emt 0:05:04]} 26. Qxe6 {[%emt 0:00:00]} Nxf4 {[%emt 0:00:07]} 27. Qe8+ {[%emt 0:00:00]} Nc8 {[%emt 0:02:37]} 28. Ra2 {[%emt 0:00:01] Inhibits Ne2+.} ({Reject} 28. exf6 gxf6 29. Qe4 Nxh3+ 30. Kf1 Bd6 $17) 28... fxe5 {[%emt 0:03:13]} 29. Bf2 {[%emt 0:01:04] A strong pair of Bishops.} Qe7 {[%emt 0:05:50]} 30. Rd8 {[%emt 0:00:02][%csl Ge8][%cal Rd8c8] Chess con chili.} Qxe8 {[%emt 0:00:18]} 31. Rxe8 {[%emt 0:00:01]} Kc7 {[%emt 0:00:27]} 32. Kh2 $2 {[%emt 0:02:20] [#]} (32. Rxe5 $11 {and White is okay.} Nxh3+ 33. Bxh3 Rxh3 34. Rf5) 32... Kd7 $1 $19 {[%emt 0:00:34]} 33. Rxe5 {[%emt 0:00:16] [#]} Bd6 $1 {[%emt 0:00:03]} 34. Rd2 {[%emt 0:00:12]} Ng6 {[%emt 0:02:28]} (34... Kc7 $19 35. Rxd6 Kxd6) 35. Rxd6+ $17 {[%emt 0:00:36]} Nxd6 {[%emt 0:00:04]} 36. Rg5 {[%emt 0:00:04]} Ne7 {[%emt 0:00:30] ...g6 is the strong threat.} (36... Rf8 $5 {[%cal Rf8f2]} 37. Kg1 Rf6 $17) 37. Rxg7 {[%emt 0:00:27]} Ndf5 {[%emt 0:00:12]} 38. Rg4 {[%emt 0:00:16]} Ke6 {[%emt 0:00:12]} 39. Rb4 {[%emt 0:00:31]} b5 {[%emt 0:00:32]} 40. Re4+ {[%emt 0:00:33] The position is equal.} Kf6 {[%emt 0:00:33]} 41. Bc5 {[%emt 0:00:16][%cal Oe4e7]} Rd8 {[%emt 0:00:15]} 42. Re2 {[%emt 0:00:25] Inhibits Rd2.} a5 {[%emt 0:01:29]} 43. Rf2 {[%emt 0:01:23] Black must now prevent Bxe7+.} Ke5 {[%emt 0:00:25]} 44. Re2+ {[%emt 0:00:40]} Kf6 {[%emt 0:00:01]} 45. Rf2 {[%emt 0:00:06] And now Bxe7+ would win.} Ke5 {[%emt 0:00:25]} 46. Re2+ {[%emt 0:00:13] Weighted Error Value: White=0.14 (very precise) /Black=0.10 (very precise)} 1/2-1/2

[Event "5th Sharjah Masters 2022"]
[Site "Sharjah"]
[Date "2022.05.21"]
[Round "1.13"]
[White "Tabatabaei, M. Amin"]
[Black "Suleymanli, Aydin"]
[Result "1/2-1/2"]
[ECO "C42"]
[WhiteElo "2650"]
[BlackElo "2537"]
[Annotator "TA"]
[PlyCount "115"]
[EventDate "2022.05.21"]
[EventType "swiss"]
[EventCountry "UAE"]
[SourceTitle "playchess.com"]
[Source "ChessBase"]
[SourceQuality "1"]
[TimeControl "5400+30"]

{[%evp 9,115,22,21,12,13,9,14,9,23,0,16,0,0,0,1,0,0,0,0,8,0,-18,6,14,13,0,46,47,50,45,77,97,88,85,88,77,77,0,0,0,0,-7,62,62,147,-53,-64,-102,-97,-104,0,0,0,-104,-110,-99,-99,-166,-160,-229,-232,-231,-227,-553,-547,-491,-486,-441,0,0,0,0,0,0,0,0,0,0,0,1,0,0,0,0,0,0,0,0,8,8,8,8,8,8,8,8,8,0,0,0,8,0,0,0,0,0,0,0]} 1. e4 {[%emt 0:00:17]} e5 {[%emt 0:00:09]} 2. Nf3 {[%emt 0:00:09]} Nf6 {[%emt 0:00:04]} 3. Nxe5 {[%emt 0:00:57]} d6 {[%emt 0:00:05]} 4. Nd3 {[%emt 0:00:38]} Nxe4 {[%emt 0:00:09]} 5. Qe2 {[%emt 0:00:07]} Qe7 {[%emt 0:00:22]} 6. Nf4 {[%emt 0:00:08] C42: Petroff Defence: 3 Nxe5 and unusual White 3rd moves.} c6 {[%emt 0:01:27] Inhibits Nd5.} 7. f3 {[%emt 0:02:20]} Nf6 {[%emt 0:00:26]} 8. d4 {[%emt 0:00:23]} Bf5 {[%emt 0:00:51] [#]} 9. c4 $146 {[%emt 0:02:20]} ({Predecessor:} 9. Na3 d5 10. c3 h5 11. h3 Nbd7 12. Qxe7+ Bxe7 13. Kf2 Nb6 14. b3 O-O-O 15. Bd3 {0-1 (73) Bhandari,N (1412)-Saypuri,S (1824) Chess.com INT 2020}) 9... h5 {[%emt 0:02:53] Against g4} 10. Nc3 {[%emt 0:00:40]} Na6 {[%emt 0:01:11]} 11. a3 {[%emt 0:02:42] Against Nb4} O-O-O {[%emt 0:01:28]} 12. Qxe7 {[%emt 0:02:49]} (12. h4 {looks sharper.} Nc7 13. d5 Nd7 14. Kf2) 12... Bxe7 {[%emt 0:00:05]} 13. h4 {[%emt 0:00:10]} Nc7 {[%emt 0:02:33]} 14. Kf2 {[%emt 0:04:17][%cal Be1f2,Bf2g3,Bg3h2][%mdl 32]} d5 {[%emt 0:01:52]} 15. c5 {[%emt 0:00:46]} Ne6 {[%emt 0:06:39]} 16. Nxe6 {[%emt 0:02:05]} fxe6 {[%emt 0:00:27]} 17. Bg5 {[%emt 0:04:10]} e5 {[%emt 0:05:34]} (17... Rde8 $11) 18. dxe5 $14 {[%emt 0:03:25]} Bxc5+ {[%emt 0:00:05]} 19. Kg3 {[%emt 0:00:07]} Rhg8 {[%emt 0:10:13][%cal Oc5b6] [#]} 20. Kh2 $1 {[%emt 0:06:31]} ({But not} 20. exf6 $2 gxf6 21. Nxd5 (21. Kf4 $2 fxg5+ 22. hxg5 Rdf8 $19) 21... Rxd5 $19) (20. Kf4 Bh7 21. Kg3 (21. exf6 $2 gxf6 22. Kg3 fxg5 $19) 21... Bd4 $15) 20... Nd7 {[%emt 0:00:42][%cal Od7e5]} 21. Bxd8 {[%emt 0:00:14]} Rxd8 {[%emt 0:00:09]} 22. f4 {[%emt 0:04:03]} d4 {[%emt 0:05:35][%cal Bd5d4,Bd4d3][%mdl 32]} 23. Ne2 {[%emt 0:09:09]} ({White should try} 23. Na4 $16) 23... d3 $11 {[%emt 0:03:35]} 24. Ng3 {[%emt 0:02:08][%csl LRf5,LRh5]} Bg6 {[%emt 0:00:11][%cal Od7e5] Hoping for ...Nxe5! This bishop pair is nice.} 25. Kh3 {[%emt 0:16:49]} Bd4 {[%emt 0:34:44]} (25... Nb6 $11) 26. Rd1 $14 {[%emt 0:15:54]} Nc5 {[%emt 0:00:55]} (26... Nxe5 $1 $14 27. fxe5 Bxe5) 27. f5 $2 {[%emt 0:02:20] [#]} (27. b4 $16 Ne6 28. f5 Nf4+ 29. Kh2) 27... Ne4 $15 {[%emt 0:00:15]} 28. Bxd3 {[%emt 0:06:13]} (28. Nxe4 Bxf5+) 28... Nf2+ {[%emt 0:00:37]} 29. Kh2 {[%emt 0:00:02]} Ng4+ {[%emt 0:02:21]} ({Resist} 29... Bxe5 30. fxg6 Bxg3+ 31. Kxg3 $14) 30. Kh3 {[%emt 0:00:02] And now Rhf1 would win.} Nf2+ {[%emt 0:00:12]} 31. Kh2 {[%emt 0:00:03]} Nxh1 {[%emt 0:02:16]} 32. Kxh1 {[%emt 0:02:59] [#]} Be8 {[%emt 0:07:16]} 33. e6 {[%emt 0:01:30]} (33. b3 $17) 33... Bxb2 $19 {[%emt 0:00:10]} 34. Be2 {[%emt 0:01:41]} (34. a4 $17 {was called for.}) 34... Rxd1+ {[%emt 0:01:32]} ({Worse is} 34... Bxa3 35. Ra1 Be7 36. Nxh5 $15) 35. Bxd1 {[%emt 0:00:02]} Bxa3 {[%emt 0:01:12]} 36. Bxh5 $2 {[%emt 0:00:03]} (36. Nxh5 {is tougher.} Bb2 37. g4) 36... Bxh5 {[%emt 0:04:53]} 37. Nxh5 {[%emt 0:00:01][%mdl 4096] Endgame KB-KN} Bb2 {[%emt 0:00:05]} 38. g4 {[%emt 0:02:10]} a5 $2 {[%emt 0:01:35]} (38... Kd8 $19 {...a5 is the strong threat.} 39. g5 Ke7 40. f6+ gxf6) 39. g5 $1 $11 {[%emt 0:00:06] The position is equal.} a4 {[%emt 0:00:32]} 40. f6 $1 {[%emt 0:04:38]} gxf6 {[%emt 0:00:05]} 41. g6 {[%emt 0:03:50]} f5 {[%emt 0:00:05]} 42. g7 {[%emt 0:00:03]} Bxg7 {[%emt 0:00:09]} 43. Nxg7 {[%emt 0:00:02] Intending e7 and mate.} Kd8 {[%emt 0:00:07] ( -> ...a3)} 44. Nxf5 {[%emt 0:00:28] h5 would kill now. KN-K3P} a3 {[%emt 0:00:39] Strongly threatening ...a2.} 45. Nd4 $1 {[%emt 0:00:50] Threatening mate with h5.} a2 {[%emt 0:00:05]} 46. Nb3 {[%emt 0:02:06] White threatens h5 and mate.} Ke7 {[%emt 0:00:09] White must now prevent ...c5.} 47. h5 $1 {[%emt 0:00:19] White wants to mate with h6.} Kxe6 {[%emt 0:00:49]} 48. Kg2 {[%emt 0:00:01]} b5 {[%emt 0:02:25]} 49. Kf3 {[%emt 0:00:01]} Kf5 {[%emt 0:00:39][%cal Oc6c5] Threatens to win with ...c5!} 50. Ke3 {[%emt 0:00:13]} c5 {[%emt 0:00:06] aiming for ...c4.} 51. Na1 {[%emt 0:00:21]} Kg5 {[%emt 0:00:30]} 52. Kd3 {[%emt 0:00:02]} Kxh5 {[%emt 0:00:15]} 53. Kc3 {[%emt 0:00:01]} Kg4 {[%emt 0:00:27]} 54. Kb3 {[%emt 0:00:01]} b4 {[%emt 0:00:07]} 55. Kxa2 {[%emt 0:00:06]} c4 {[%emt 0:00:02]} 56. Kb2 {[%emt 0:00:10]} b3 {[%emt 0:00:03]} 57. Nxb3 {[%emt 0:00:04]} cxb3 {[%emt 0:00:01]} 58. Kxb3 {[%emt 0:05:44] White happily takes the draw.  Weighted Error Value: White=0.21 (precise) /Black=0.22 (precise)} 1/2-1/2

[Event "5th Sharjah Masters 2022"]
[Site "Sharjah"]
[Date "2022.05.21"]
[Round "1.14"]
[White "Vokhidov, Shamsiddin"]
[Black "Nihal Sarin"]
[Result "1/2-1/2"]
[ECO "B30"]
[WhiteElo "2536"]
[BlackElo "2646"]
[Annotator "TA"]
[PlyCount "92"]
[EventDate "2022.05.21"]
[EventType "swiss"]
[EventCountry "UAE"]
[SourceTitle "playchess.com"]
[Source "ChessBase"]
[SourceQuality "1"]
[TimeControl "5400+30"]

{[%evp 9,92,7,53,20,19,21,20,22,28,30,33,18,31,14,21,10,17,5,11,8,6,7,11,10,16,8,25,15,4,0,0,0,0,0,0,0,31,0,0,0,0,0,0,0,0,0,0,-12,-8,-11,-11,-8,-5,-8,-2,-2,-2,-2,-6,0,0,-8,0,0,0,-8,-8,-8,-8,-8,-8,-8,-8,-8,0,0,0,-8,-8,-8,-8,-8,-8,-8,-8]} 1. e4 {[%emt 0:00:04]} c5 {[%emt 0:00:21]} 2. Nf3 {[%emt 0:00:07]} Nc6 {[%emt 0:00:05]} 3. Bb5 {[%emt 0:00:05]} e6 {[%emt 0:00:06]} 4. O-O {[%emt 0:01:43]} Nge7 {[%emt 0:00:07]} 5. Re1 {[%emt 0:00:29]} b6 {[%emt 0:00:08]} (5... a6 $11 {deserves consideration.} 6. Bxc6 Nxc6) 6. d4 {[%emt 0:02:43] B30: Sicilian: 2...Nc6 3 Bb5, lines without ...g6.} cxd4 {[%emt 0:00:24]} 7. Nxd4 {[%emt 0:00:04]} Nxd4 {[%emt 0:00:18]} 8. Qxd4 {[%emt 0:00:02]} a6 {[%emt 0:00:37]} 9. Bf1 {[%emt 0:01:10]} Nc6 {[%emt 0:00:07]} 10. Qc3 {[%emt 0:01:18]} Qc7 {[%emt 0:09:34] [#] Against Bf4} 11. Qg3 $146 {[%emt 0:08:05]} ({Predecessor:} 11. a4 f6 12. Rd1 Bb4 13. Qg3 Qxg3 14. hxg3 Bc5 15. c3 a5 16. Nd2 Bb7 17. Nb3 {½-½ (17) Debevec,B (2277)-Henderson,G (2332) ICCF email 2021}) 11... Qxg3 {[%emt 0:24:08]} (11... Bd6 {keeps more tension.} 12. Qxg7 Bxh2+ 13. Kh1 Be5) 12. hxg3 {[%emt 0:00:44]} Bb7 {[%emt 0:00:04]} 13. c3 {[%emt 0:25:01]} Bd6 {[%emt 0:02:05]} 14. Be3 {[%emt 0:04:27]} Bc7 {[%emt 0:01:19]} 15. Nd2 {[%emt 0:02:12]} Ne5 {[%emt 0:00:17]} 16. f3 {[%emt 0:04:59]} h5 {[%emt 0:02:06]} 17. Kf2 {[%emt 0:02:34]} f6 {[%emt 0:00:28]} 18. a4 {[%emt 0:03:17]} g5 {[%emt 0:02:47]} 19. Nc4 {[%emt 0:04:58]} Nxc4 {[%emt 0:00:37]} 20. Bxc4 {[%emt 0:00:02]} Ke7 {[%emt 0:00:33]} 21. Rh1 {[%emt 0:01:36]} Bc6 {[%emt 0:01:30]} 22. Bd3 {[%emt 0:02:13]} Kf7 {[%emt 0:15:05]} 23. b4 {[%emt 0:03:19]} b5 {[%emt 0:03:23] The position is equal.} 24. axb5 {[%emt 0:07:20]} axb5 {[%emt 0:00:15]} 25. c4 {[%emt 0:03:03]} Rxa1 {[%emt 0:16:11]} 26. Rxa1 {[%emt 0:00:02]} bxc4 {[%emt 0:00:07]} 27. Bxc4 {[%emt 0:00:02]} Rb8 {[%emt 0:00:06] Prevents b5.} 28. Ra7 {[%emt 0:04:27]} Rxb4 {[%emt 0:04:20] [#] White must now prevent ...Bb8.} 29. Bxe6+ $1 {[%emt 0:00:04]} Kxe6 {[%emt 0:00:06]} 30. Rxc7 $11 {[%emt 0:00:03][%mdl 4096] Endgame KRB-KRB} Rb2+ {[%emt 0:00:06]} 31. Kg1 {[%emt 0:00:09]} g4 {[%emt 0:00:08]} 32. Rc8 {[%emt 0:01:30]} Rb3 {[%emt 0:07:20]} 33. Kf2 {[%emt 0:01:18]} h4 {[%emt 0:01:00]} 34. fxg4 {[%emt 0:01:46]} hxg3+ {[%emt 0:00:26]} 35. Kf3 {[%emt 0:00:07]} Kf7 {[%emt 0:00:20]} 36. Rh8 {[%emt 0:02:46]} Rb4 {[%emt 0:03:38]} 37. Kxg3 {[%emt 0:00:48]} Rxe4 {[%emt 0:00:06]} 38. Bf4 {[%emt 0:02:28]} Re2 {[%emt 0:00:06]} 39. Rh2 {[%emt 0:00:06]} Kg6 {[%emt 0:00:09]} 40. Rh6+ {[%emt 0:00:07]} Kg7 {[%emt 0:00:05]} 41. Rh2 {[%emt 0:00:04]} Kg6 {[%emt 0:02:02]} 42. Rh6+ {[%emt 0:00:03]} Kf7 {[%emt 0:00:04]} 43. Rh2 {[%emt 0:00:50]} Be4 {[%emt 0:00:01]} 44. g5 {[%emt 0:00:32]} d5 {[%emt 0:00:15]} 45. gxf6 {[%emt 0:00:13]} Kxf6 {[%emt 0:00:45]} 46. Kh4 {[%emt 0:01:52]} Rxg2 {[%emt 0:00:59] An uneventful encounter.  Weighted Error Value: White=0.04 (flawless) /Black=0.04 (flawless)} 1/2-1/2